bitfinex/quotes_ETHUSD_20250706
["timestamp","ask_amount","ask_price","bid_price","bid_amount"]
[1751786239623,0.1986,2527.2,2526.8,3.95957269]
[1751786239928,8.1506,2527.2,2526.9,0.1976]
[1751786240632,8.1506,2527.2,2526.9,0.1976]
[1751786247318,8.1506,2527.2,2526.9,4.15500944]
[1751786250042,0.001,2527.2,2527.0,3.95726157]
[1751786254457,0.001,2527.2,2526.9,0.1976]
[1751786254947,0.8278,2527.2,2526.9,0.1976]
[1751786255116,0.8278,2527.2,2526.9,4.15501676]
[1751786257829,0.001,2527.2,2526.9,4.15501676]
[1751786261751,0.001,2527.2,2526.9,0.1976]
[1751786261944,0.001,2527.2,2527.0,3.95724657]
[1751786263057,0.001,2527.2,2526.9,4.15492895]
[1751786274637,0.001,2527.2,2527.0,3.95723517]
[1751786275063,0.001,2527.2,2527.1,3.95710498]
[1751786275267,0.001,2527.2,2527.1,10.51398263]
[1751786275457,0.001,2527.2,2527.1,21.83198263]
[1751786276161,0.001,2527.2,2527.1,29.78298263]
[1751786277758,0.001,2527.2,2527.1,31.83041952]
[1751786280669,0.001,2527.2,2527.1,36.58041952]
[1751786283177,1e-08,2527.2,2527.1,36.58041952]
[1751786283354,1e-08,2527.3,2527.2,15.3237484]
[1751786283543,1e-08,2527.3,2527.2,19.17264088]
[1751786284657,1e-08,2527.3,2527.2,28.67664088]
[1751786285167,1e-08,2527.3,2527.2,33.42664088]
[1751786285770,0.02,2528.1,2528.0,3.9556962]
[1751786285979,0.02,2528.1,2528.0,31.28420805]
[1751786286268,0.02,2528.1,2528.0,20.62845109]
[1751786286466,0.02,2528.1,2528.0,7.29375489]
[1751786286656,0.02,2528.1,2528.0,13.17845109]
[1751786287069,0.02,2528.1,2528.0,9.22275489]
[1751786288070,0.02,2528.1,2528.0,8.72275489]
[1751786289371,0.02,2528.1,2528.0,6.8766]
[1751786289571,0.02,2528.1,2528.0,2.1266]
[1751786290473,0.02,2528.1,2527.6,3.95623387]
[1751786290646,4.79912624,2528.1,2527.8,2.1266]
[1751786292686,3.95580713,2528.0,2527.8,2.1266]
[1751786292882,0.8435,2528.1,2527.8,2.1266]
[1751786293188,4.79911594,2528.1,2527.8,2.1266]
[1751786293486,0.91950671,2528.1,2527.8,2.1266]
[1751786293667,0.7816,2527.9,2527.8,2.1266]
[1751786293892,4.73745268,2527.9,2527.8,2.1266]
[1751786294247,0.7816,2527.9,2527.8,2.1266]
[1751786297966,4.73745268,2527.9,2527.8,2.1266]
[1751786298494,4.73745268,2527.9,2527.8,1.929]
[1751786298682,1.67266407,2527.9,2527.8,1.929]
[1751786299690,5.62851675,2527.9,2527.8,1.929]
[1751786300996,1.67266407,2527.9,2527.8,1.929]
[1751786301430,12.89409238,2528.1,2527.8,1.929]
[1751786301981,4.93409238,2528.1,2527.8,1.929]
[1751786302181,12.89409238,2528.1,2527.8,1.929]
[1751786303608,8.7409,2528.1,2527.8,1.929]
[1751786303774,12.69645742,2528.1,2527.8,2.1266]
[1751786303976,0.02,2528.1,2527.9,3.95584416]
[1751786304176,7.98,2528.1,2527.9,3.95584416]
[1751786304402,7.98,2528.1,2527.8,6.08253622]
[1751786304587,0.02,2528.1,2527.8,6.08253622]
[1751786305091,0.02,2528.1,2527.9,3.95582798]
[1751786305791,0.02,2528.1,2528.0,0.1976]
[1751786308872,7.979,2528.1,2528.0,0.1976]
[1751786309820,0.02,2528.1,2528.0,0.1976]
[1751786314900,4.85382361,2528.1,2528.0,0.1976]
[1751786315094,5.62342361,2528.1,2528.0,0.1976]
[1751786316490,1.66788388,2528.1,2528.0,0.1976]
[1751786316690,5.62342361,2528.1,2528.0,0.1976]
[1751786317076,1.66788388,2528.1,2528.0,0.1976]
[1751786317701,0.7896,2528.1,2528.0,0.1976]
[1751786320312,7.977,2528.1,2528.0,0.1976]
[1751786324119,0.02,2528.1,2528.0,0.1976]
[1751786324285,7.976,2528.1,2528.0,0.1976]
[1751786325108,11.93153973,2528.1,2528.0,0.1976]
[1751786325310,7.976,2528.1,2528.0,0.1976]
[1751786330134,0.02,2528.1,2528.0,0.1976]
[1751786330441,0.02,2528.1,2528.0,4.9560962]
[1751786330735,0.02,2528.1,2528.0,6.04434408]
[1751786335443,0.02,2528.1,2528.0,6.54434408]
[1751786336448,0.02,2528.1,2528.0,0.1976]
[1751786336661,0.81,2528.1,2528.0,0.1976]
[1751786336950,3.95585268,2527.9,2527.8,0.002]
[1751786337110,4.74585268,2527.9,2527.8,0.002]
[1751786337311,4.94345268,2527.9,2527.8,0.002]
[1751786339949,0.9876,2527.9,2527.8,0.002]
[1751786340243,4.94345268,2527.9,2527.8,0.002]
[1751786342965,14.94345268,2527.9,2527.8,0.002]
[1751786345457,22.90645268,2527.9,2527.8,0.002]
[1751786346425,14.94345268,2527.9,2527.8,0.002]
[1751786346627,22.90745268,2527.9,2527.8,0.002]
[1751786347029,14.94345268,2527.9,2527.8,0.002]
[1751786347229,22.90645268,2527.9,2527.8,0.002]
[1751786349168,14.94345268,2527.9,2527.8,0.002]
[1751786349343,22.90645268,2527.9,2527.8,0.002]
[1751786350843,22.90645268,2527.9,2527.8,1e-08]
[1751786352862,24.83745268,2527.9,2527.8,1e-08]
[1751786354864,3.95741818,2526.9,2526.8,0.002]
[1751786355165,11.92141818,2526.9,2526.8,0.002]
[1751786357170,13.23777081,2526.9,2526.8,0.002]
[1751786357347,11.92141818,2526.9,2526.8,0.002]
[1751786363669,22.70611818,2526.9,2526.8,0.002]
[1751786368642,14.74211818,2526.9,2526.8,0.002]
[1751786368844,22.70911818,2526.9,2526.8,0.002]
[1751786371982,14.74211818,2526.9,2526.8,0.002]
[1751786372280,22.70911818,2526.9,2526.8,0.002]
[1751786384973,3.95820139,2526.4,2526.3,0.0449388]
[1751786385274,19.44092229,2526.4,2526.3,0.0449388]
[1751786385689,29.44092229,2526.4,2526.3,0.0449388]
[1751786385998,30.24252229,2526.4,2526.3,0.0449388]
[1751786386563,30.24252229,2526.4,2526.1,0.002]
[1751786386564,3.95851476,2526.2,2526.1,0.002]
[1751786386775,3.95898491,2525.9,2525.8,0.0449388]
[1751786387075,19.44470581,2525.9,2525.8,0.0449388]
[1751786387262,29.44470581,2525.9,2525.2,0.01]
[1751786387466,14.76136874,2525.4,2525.2,0.01]
[1751786387680,22.73736874,2525.4,2525.2,0.01]
[1751786388674,14.76136874,2525.4,2525.2,0.01]
[1751786388997,22.74136874,2525.4,2525.2,0.01]
[1751786392709,14.76136874,2525.4,2525.2,0.01]
[1751786392910,21.94376874,2525.4,2525.2,0.01]
[1751786403202,22.77096874,2525.4,2525.2,0.01]
[1751786403405,22.77096874,2525.4,2525.3,0.0449388]
[1751786406934,21.94676874,2525.4,2525.3,0.0449388]
[1751786408102,21.94976874,2525.4,2525.3,0.0449388]
[1751786409538,21.94976874,2525.4,2525.3,0.0429388]
[1751786413913,22.73926874,2525.4,2525.3,0.0429388]
[1751786425454,4.39832802,2526.0,2524.3,0.0429388]
[1751786425455,10.0,2524.4,2524.3,0.0429388]
[1751786425655,21.95233734,2524.4,2524.3,0.0429388]
[1751786426349,22.72433734,2524.4,2524.3,0.0429388]
[1751786427755,22.72433734,2524.4,2524.3,1e-08]
[1751786429219,14.73333734,2524.4,2524.3,1e-08]
[1751786429421,24.72433734,2524.4,2524.3,1e-08]
[1751786430960,24.72433734,2524.4,2524.3,0.00200001]
[1751786431358,24.72533734,2524.4,2524.3,0.00200001]
[1751786432041,14.73333734,2524.4,2524.3,0.00200001]
[1751786432241,24.72533734,2524.4,2524.3,0.00200001]
[1751786432960,22.01033734,2524.4,2524.3,0.00200001]
[1751786436153,23.95533734,2524.4,2524.3,0.00200001]
[1751786437860,13.96133734,2524.4,2524.3,0.00200001]
[1751786438170,22.01333734,2524.4,2524.3,0.00200001]
[1751786439461,22.01333734,2524.4,2524.3,0.002]
[1751786440670,22.64701932,2524.4,2524.3,0.002]
[1751786441169,23.45231932,2524.4,2524.3,0.002]
[1751786442562,23.45861825,2524.4,2524.3,1e-08]
[1751786442759,24.09230023,2524.4,2524.3,1e-08]
[1751786444849,14.72512211,2523.9,2523.8,0.03325511]
[1751786445042,32.27184301,2523.9,2523.8,0.03325511]
[1751786451397,31.50584301,2523.9,2523.8,0.03325511]
[1751786452869,31.50584301,2523.9,2523.8,0.03525511]
[1751786454897,22.01612211,2523.9,2523.8,0.03525511]
[1751786456893,13.96212211,2523.9,2523.8,0.03525511]
[1751786457104,22.01412211,2523.9,2523.8,0.03525511]
[1751786465189,13.96212211,2523.9,2523.8,0.03525511]
[1751786465391,22.00612211,2523.9,2523.8,0.03525511]
[1751786467920,22.79132211,2523.9,2523.8,0.03525511]
[1751786472632,3.96290718,2523.4,2523.3,0.775]
[1751786472928,3.9632213,2523.2,2523.1,0.2537379]
[1751786473129,12.0022213,2523.2,2523.1,0.0561379]
[1751786474029,3.9632213,2523.2,2523.1,0.8562379]
[1751786474236,12.0042213,2523.2,2523.1,0.8562379]
[1751786479237,0.1976,2523.4,2523.1,0.8562379]
[1751786479453,12.00106823,2523.3,2523.1,1.0538379]
[1751786481840,3.9632213,2523.2,2523.1,1.0538379]
[1751786482402,3.9632213,2523.2,2523.1,0.8562379]
[1751786483636,3.9632213,2523.2,2523.1,0.0561379]
[1751786493237,11.9992213,2523.2,2523.1,0.0561379]
[1751786494643,3.9632213,2523.2,2523.1,0.0561379]
[1751786494945,11.9982213,2523.2,2523.1,0.0561379]
[1751786495517,3.9632213,2523.2,2523.1,0.0561379]
[1751786495717,11.9982213,2523.2,2523.1,0.0561379]
[1751786495914,3.96318222,2523.3,2523.2,0.7667]
[1751786496239,11.99818222,2523.3,2523.2,0.7667]
[1751786499846,11.99706424,2523.3,2523.2,0.7667]
[1751786500049,8.034,2523.3,2523.2,0.7667]
[1751786500232,8.033,2523.3,2523.2,0.7667]
[1751786500821,11.99606424,2523.3,2523.2,0.7667]
[1751786502255,8.031,2523.3,2523.2,0.7667]
[1751786503658,4.16035017,2523.5,2523.2,0.7667]
[1751786504357,8.03,2523.4,2523.2,0.7667]
[1751786505151,8.03,2523.3,2523.2,0.7667]
[1751786505367,10.1976,2523.5,2523.2,0.7667]
[1751786505566,8.029,2523.4,2523.2,0.7667]
[1751786507974,14.16043135,2523.5,2523.2,0.7667]
[1751786508260,8.027,2523.4,2523.2,0.7667]
[1751786508853,11.99001264,2523.4,2523.2,0.7667]
[1751786509050,8.026,2523.3,2523.2,0.7667]
[1751786510260,14.16047985,2523.5,2523.2,0.7667]
[1751786510558,11.98891642,2523.4,2523.2,0.7667]
[1751786512660,3.96291642,2523.4,2523.2,0.7667]
[1751786512961,8.023,2523.3,2523.2,0.7667]
[1751786513164,3.96259312,2523.6,2523.3,0.1976]
[1751786513361,8.023,2523.5,2523.3,0.1976]
[1751786513858,0.1976,2523.7,2523.3,4.16062895]
[1751786514062,8.023,2523.6,2523.4,0.7948]
[1751786514471,11.9856122,2523.6,2523.4,0.7948]
[1751786515838,3.96275014,2523.5,2523.4,0.7948]
[1751786516058,3.96275014,2523.5,2523.3,0.1976]
[1751786516366,11.98790718,2523.4,2523.3,0.1976]
[1751786518462,8.025,2523.4,2523.3,0.1976]
[1751786519060,3.96283454,2523.5,2523.3,0.1976]
[1751786519243,8.027,2523.4,2523.3,0.1976]
[1751786519443,11.98990718,2523.4,2523.3,0.1976]
[1751786520434,8.027,2523.4,2523.3,0.1976]
[1751786521565,3.96283862,2523.5,2523.3,0.1976]
[1751786521764,8.024,2523.4,2523.3,0.1976]
[1751786522563,11.98690718,2523.4,2523.3,0.1976]
[1751786523371,8.024,2523.4,2523.3,0.1976]
[1751786526444,11.98690718,2523.4,2523.3,0.1976]
[1751786529090,8.024,2523.4,2523.3,0.1976]
[1751786529848,11.98690718,2523.4,2523.3,0.1976]
[1751786531062,8.024,2523.4,2523.3,0.1976]
[1751786536587,4.97256183,2523.7,2523.3,0.1976]
[1751786536785,0.1976,2523.7,2523.3,0.23723064]
[1751786537086,0.1976,2523.7,2523.1,0.0700029]
[1751786537087,8.013,2523.6,2523.5,0.1976]
[1751786537587,8.013,2523.6,2523.5,0.2247033]
[1751786537903,11.97559312,2523.6,2523.5,0.2247033]
[1751786538494,8.013,2523.6,2523.5,0.2247033]
[1751786539585,8.014,2523.6,2523.5,0.2247033]
[1751786542481,3.96250789,2523.7,2523.5,0.2247033]
[1751786542684,8.013,2523.6,2523.5,0.2247033]
[1751786545585,11.97559312,2523.6,2523.5,0.2247033]
[1751786545788,12.78539312,2523.6,2523.5,0.0271033]
[1751786545989,22.78539312,2523.6,2523.5,0.0271033]
[1751786551264,14.77239312,2523.6,2523.5,0.0271033]
[1751786551466,22.78639312,2523.6,2523.5,0.0271033]
[1751786552163,22.78539312,2523.6,2523.5,0.0271033]
[1751786557005,21.97559312,2523.6,2523.5,0.0271033]
[1751786557508,21.97359312,2523.6,2523.5,0.0271033]
[1751786559387,13.96259312,2523.6,2523.5,0.0271033]
[1751786559783,22.17019312,2523.6,2523.5,0.0271033]
[1751786560406,22.17019312,2523.6,2523.5,0.0291033]
[1751786563677,22.16819312,2523.6,2523.5,0.0291033]
[1751786573920,18.1996,2523.6,2523.5,0.0291033]
[1751786574123,14.16019312,2523.6,2523.5,0.0291033]
[1751786574277,8.002,2523.6,2523.5,0.0291033]
[1751786574485,8.002,2523.6,2523.5,0.2267033]
[1751786575908,3.96335201,2523.8,2523.5,0.2267033]
[1751786576093,8.005,2523.7,2523.5,0.2267033]
[1751786576513,8.004,2523.6,2523.5,0.9941033]
[1751786576695,8.004,2523.6,2523.5,1.88629595]
[1751786578716,0.001,2523.8,2523.5,1.88629595]
[1751786578896,8.003,2523.7,2523.5,0.9941033]
[1751786579427,0.001,2523.8,2523.5,4.95681622]
[1751786579721,8.003,2523.7,2523.5,0.9941033]
[1751786582104,8.002,2523.6,2523.5,0.9941033]
[1751786583311,8.001,2523.6,2523.5,0.9941033]
[1751786585744,0.001,2523.8,2523.5,0.9941033]
[1751786586050,8.0,2523.6,2523.5,0.9941033]
[1751786591459,11.96259312,2523.6,2523.5,0.9941033]
[1751786591792,11.96259312,2523.6,2523.5,0.2267033]
[1751786591955,8.0,2523.6,2523.5,0.2267033]
[1751786593646,11.96259312,2523.6,2523.5,0.2267033]
[1751786595055,3.96249641,2523.7,2523.5,0.2267033]
[1751786595218,7.997,2523.6,2523.5,0.2267033]
[1751786597052,11.95959312,2523.6,2523.5,0.2267033]
[1751786598065,7.997,2523.6,2523.5,0.2267033]
[1751786598767,11.95959312,2523.6,2523.5,0.2267033]
[1751786599341,11.95959312,2523.6,2523.5,0.0291033]
[1751786600579,3.96259312,2523.6,2523.5,0.0291033]
[1751786600752,11.95859312,2523.6,2523.5,0.0291033]
[1751786601437,12.77859312,2523.6,2523.5,0.0291033]
[1751786602573,3.9625411,2523.7,2523.5,0.0291033]
[1751786602755,7.995,2523.6,2523.5,0.0291033]
[1751786602941,11.95759312,2523.6,2523.5,0.0291033]
[1751786604477,3.96259312,2523.6,2523.5,0.0291033]
[1751786604655,11.95659312,2523.6,2523.5,0.0291033]
[1751786605374,7.994,2523.6,2523.5,0.0291033]
[1751786607573,11.95659312,2523.6,2523.5,0.0291033]
[1751786610542,7.994,2523.6,2523.5,0.0291033]
[1751786611054,7.994,2523.6,2523.5,0.2267033]
[1751786614393,7.993,2523.6,2523.5,0.2267033]
[1751786614676,0.001,2523.8,2523.5,0.2267033]
[1751786614677,0.001,2523.8,2523.6,0.8002]
[1751786614979,0.001,2523.8,2523.7,3.9624361]
[1751786615177,0.001,2523.8,2523.7,5.05521864]
[1751786615380,7.995,2523.8,2523.7,5.094843]
[1751786615552,7.995,2523.8,2523.7,5.05521864]
[1751786615746,0.001,2523.8,2523.7,5.05521864]
[1751786617676,0.001,2523.8,2523.7,5.094843]
[1751786618579,0.001,2523.8,2523.7,6.445043]
[1751786618779,0.001,2523.8,2523.7,11.15541864]
[1751786618979,0.001,2523.8,2523.7,7.19298254]
[1751786619183,0.001,2523.8,2523.7,11.15541864]
[1751786619373,0.001,2523.8,2523.7,11.65541864]
[1751786620390,0.001,2523.8,2523.7,11.15541864]
[1751786622663,0.001,2523.8,2523.7,28.67413954]
[1751786624489,0.001,2523.8,2523.7,29.17413954]
[1751786625256,0.001,2523.8,2523.7,21.65541864]
[1751786625689,0.001,2523.8,2523.7,16.90541864]
[1751786625893,0.001,2523.8,2523.7,6.35541864]
[1751786626201,0.001,2523.8,2523.7,2.34578254]
[1751786626358,0.001,2523.8,2523.7,5.847843]
[1751786626560,0.001,2523.8,2523.7,6.397843]
[1751786630811,0.001,2523.8,2523.7,16.397843]
[1751786631108,0.001,2523.8,2523.7,16.35821864]
[1751786634612,1e-08,2523.8,2523.7,16.35821864]
[1751786638804,1e-08,2523.8,2523.7,21.10821864]
[1751786643229,1e-08,2523.8,2523.7,28.62693954]
[1751786667866,1e-08,2523.8,2523.7,35.86393954]
[1751786679562,1e-08,2523.8,2523.7,37.80593954]
[1751786680683,1e-08,2523.8,2523.7,38.63363954]
[1751786687988,1e-08,2523.8,2523.7,31.11491864]
[1751786688162,1e-08,2523.8,2523.7,38.63363954]
[1751786691661,1e-08,2523.8,2523.7,29.81593954]
[1751786691862,1e-08,2523.8,2523.7,37.80593954]
[1751786696802,1e-08,2523.8,2523.7,29.81593954]
[1751786697106,1e-08,2523.8,2523.7,30.28721864]
[1751786697307,1e-08,2523.8,2523.7,12.29721864]
[1751786697492,1e-08,2523.8,2523.7,19.3920361]
[1751786698999,1e-08,2523.8,2523.7,11.4020361]
[1751786699208,1e-08,2523.8,2523.7,19.3920361]
[1751786701613,1e-08,2523.8,2523.7,26.910757]
[1751786701979,1e-08,2523.8,2523.7,36.910757]
[1751786702192,1e-08,2523.8,2523.7,40.75964948]
[1751786712331,1e-08,2523.8,2523.7,33.24092858]
[1751786722141,1e-08,2523.8,2523.7,21.4020361]
[1751786722344,1e-08,2523.8,2523.7,14.6420361]
[1751786723215,1e-08,2523.8,2523.7,22.160757]
[1751786729549,1e-08,2523.8,2523.7,14.6420361]
[1751786738461,1e-08,2523.8,2523.7,6.6520361]
[1751786738662,1e-08,2523.8,2523.7,8.23123316]
[1751786738971,1e-08,2523.8,2523.7,8.1916088]
[1751786742361,1e-08,2523.8,2523.7,12.9416088]
[1751786749386,0.82470001,2523.8,2523.7,19.3920361]
[1751786757289,1e-08,2523.8,2523.7,19.3920361]
[1751786758691,1e-08,2523.8,2523.7,17.4500361]
[1751786773827,1e-08,2523.8,2523.7,22.93384105]
[1751786779429,1e-08,2523.8,2523.7,32.93384105]
[1751786779636,1e-08,2523.8,2523.7,37.60703353]
[1751786781927,1e-08,2523.8,2523.7,39.6613662]
[1751786784839,1e-08,2523.8,2523.7,32.12322858]
[1751786801858,1e-08,2523.8,2523.7,37.60596538]
[1751786826344,1e-08,2523.8,2523.7,36.78166538]
[1751786832933,1e-08,2523.8,2523.7,31.29892858]
[1751786833128,1e-08,2523.8,2523.7,28.79166538]
[1751786833333,1e-08,2523.8,2523.7,36.77366538]
[1751786833955,1e-08,2523.8,2523.7,31.29092858]
[1751786834145,1e-08,2523.8,2523.7,36.77366538]
[1751786837773,1e-08,2523.8,2523.7,38.82931786]
[1751786839667,1e-08,2523.8,2523.7,39.61731786]
[1751786849309,1e-08,2523.8,2523.7,30.84731786]
[1751786849599,1e-08,2523.8,2523.7,38.82831786]
[1751786855108,1e-08,2523.8,2523.7,40.76631786]
[1751786857108,1e-08,2523.8,2523.7,25.24692858]
[1751786857324,1e-08,2523.8,2523.7,33.22792858]
[1751786859928,1e-08,2523.8,2523.7,29.3780361]
[1751786866144,1e-08,2523.8,2523.7,21.3980361]
[1751786866432,1e-08,2523.8,2523.7,29.3780361]
[1751786868929,0.77080001,2523.8,2523.7,29.3780361]
[1751786869108,0.77080001,2523.8,2523.7,19.4600361]
[1751786869317,0.77080001,2523.8,2523.7,27.4400361]
[1751786872654,0.77080001,2523.8,2523.7,22.6900361]
[1751786873458,0.77080001,2523.8,2523.7,4.7100361]
[1751786880274,1e-08,2523.8,2523.7,4.7100361]
[1751786880438,1e-08,2523.8,2523.7,4.74966046]
[1751786880969,1e-08,2523.8,2523.7,4.7100361]
[1751786883073,1e-08,2523.8,2523.7,4.74966046]
[1751786883274,1e-08,2523.8,2523.7,4.7100361]
[1751786884276,1e-08,2523.8,2523.7,4.74966046]
[1751786884474,1e-08,2523.8,2523.7,9.49966046]
[1751786884680,1e-08,2523.8,2523.7,9.4600361]
[1751786897518,1e-08,2523.8,2523.7,8.9100361]
[1751786899211,1e-08,2523.8,2523.7,9.4600361]
[1751786901016,1e-08,2523.8,2523.7,8.9100361]
[1751786901591,1e-08,2523.8,2523.7,9.4600361]
[1751786902023,1e-08,2523.8,2523.7,22.9746011]
[1751786903030,1e-08,2523.8,2523.7,30.9536011]
[1751786945806,1e-08,2523.8,2523.7,30.1308011]
[1751786975332,1e-08,2523.8,2523.7,32.0648011]
[1751786980627,1e-08,2523.8,2523.7,32.8809011]
[1751786992059,1e-08,2523.8,2523.7,24.9019011]
[1751786992229,1e-08,2523.8,2523.7,32.8729011]
[1751787002857,1e-08,2523.8,2523.7,38.35683257]
[1751787004867,1e-08,2523.8,2523.7,32.8729011]
[1751787024193,1e-08,2523.8,2523.7,32.0568011]
[1751787033715,1e-08,2523.8,2523.7,23.5358011]
[1751787033910,0.79900001,2523.8,2523.7,28.8110361]
[1751787034312,0.79900001,2523.8,2523.7,29.3610361]
[1751787034520,0.79900001,2523.8,2523.7,8.9100361]
[1751787038439,0.79900001,2523.8,2523.7,4.1600361]
[1751787051253,1e-08,2523.8,2523.7,4.74966046]
[1751787051468,1e-08,2523.8,2523.7,6.11616693]
[1751787052576,1e-08,2523.8,2523.7,4.74966046]
[1751787053163,1e-08,2523.8,2523.7,4.7100361]
[1751787055679,0.77080001,2523.8,2523.7,4.7100361]
[1751787056181,0.77080001,2523.8,2523.7,9.4600361]
[1751787059151,0.77080001,2523.8,2523.7,8.9100361]
[1751787060691,1e-08,2523.8,2523.7,8.9100361]
[1751787062067,1e-08,2523.8,2523.7,4.1600361]
[1751787063819,0.79160001,2523.8,2523.7,4.1600361]
[1751787064265,0.79160001,2523.8,2523.7,0.1976]
[1751787065395,0.79160001,2523.8,2523.7,4.1600361]
[1751787078105,7.96700001,2523.8,2523.6,0.0291033]
[1751787078287,4.9567361,2523.7,2523.6,0.0291033]
[1751787078494,5.7194361,2523.7,2523.6,0.0291033]
[1751787079786,1.757,2523.7,2523.6,0.0291033]
[1751787079966,0.7627,2523.7,2523.6,0.0291033]
[1751787080170,8.7297,2523.7,2523.6,0.0291033]
[1751787080981,8.7297,2523.7,2523.6,3.99169642]
[1751787081603,1e-08,2523.8,2523.7,3.9624361]
[1751787081900,7.96700001,2523.8,2523.6,3.99162131]
[1751787082101,0.87777,2523.7,2523.6,3.99162131]
[1751787085174,1e-08,2523.8,2523.7,3.9624361]
[1751787085374,7.96700001,2523.8,2523.7,3.9624361]
[1751787089210,7.96700001,2523.8,2523.6,3.99162549]
[1751787090509,1e-08,2523.8,2523.6,3.99162549]
[1751787090711,0.8222,2523.7,2523.6,3.99162549]
[1751787091902,1.70112,2523.7,2523.6,3.99162549]
[1751787092089,1.70112,2523.7,2523.6,0.0291033]
[1751787096414,1.70112,2523.7,2523.6,3.99169642]
[1751787096711,0.8222,2523.7,2523.6,0.0291033]
[1751787096912,0.8222,2523.7,2523.6,3.99169642]
[1751787097113,1e-08,2523.8,2523.6,3.99169642]
[1751787099111,1e-08,2523.8,2523.6,0.0291033]
[1751787105023,1e-08,2523.8,2523.6,3.99167581]
[1751787105392,1e-08,2523.8,2523.6,0.0291033]
[1751787108623,3.96239884,2523.8,2523.6,0.0291033]
[1751787108814,1e-08,2523.8,2523.6,0.0291033]
[1751787110105,3.96229554,2523.8,2523.6,0.0291033]
[1751787110305,1e-08,2523.8,2523.6,0.0291033]
[1751787112647,3.9622856,2523.8,2523.6,0.0291033]
[1751787113129,1e-08,2523.8,2523.6,0.0291033]
[1751787115101,1e-08,2523.8,2523.6,3.99162719]
[1751787115102,7.967,2523.7,2523.6,3.99162719]
[1751787115808,7.967,2523.7,2523.6,0.0291033]
[1751787116127,7.967,2523.7,2523.6,3.99169642]
[1751787117433,7.967,2523.7,2523.6,0.0291033]
[1751787120535,1e-08,2523.8,2523.6,0.0291033]
[1751787120716,7.967,2523.7,2523.6,0.0291033]
[1751787121408,12.6998361,2523.7,2523.6,0.0291033]
[1751787141555,22.6998361,2523.7,2523.6,0.0291033]
[1751787144065,22.6998361,2523.7,2523.6,1e-08]
[1751787144066,32.17083174,2523.7,2523.6,1e-08]
[1751787144368,32.98931933,2523.7,2523.6,1e-08]
[1751787146559,3.9637435,2522.9,2522.7,0.00889961]
[1751787146862,7.968,2522.8,2522.7,0.00889961]
[1751787152970,0.1976,2523.1,2522.8,0.8232]
[1751787153172,7.968,2523.0,2522.8,0.8232]
[1751787154792,7.968,2523.0,2522.8,4.787045]
[1751787155084,7.968,2523.0,2522.8,0.8232]
[1751787156053,7.968,2523.0,2522.8,0.7732]
[1751787162219,7.968,2523.0,2522.8,4.73695415]
[1751787162400,0.1976,2523.1,2522.9,3.96369257]
[1751787162597,7.968,2523.0,2522.8,4.73696759]
[1751787162774,7.968,2523.0,2522.8,0.7732]
[1751787164295,7.968,2522.9,2522.8,0.7732]
[1751787164814,7.968,2522.9,2522.7,3.9728251]
[1751787164990,7.968,2522.9,2522.7,0.00889961]
[1751787169326,7.968,2522.9,2522.7,3.97288407]
[1751787171322,7.968,2522.9,2522.8,3.96384969]
[1751787175923,7.968,2522.9,2522.7,3.97283005]
[1751787179717,7.969,2522.9,2522.7,3.97283005]
[1751787182135,7.969,2522.9,2522.8,3.96384969]
[1751787182640,7.969,2522.9,2522.7,0.00889961]
[1751787182641,7.969,2522.9,2522.7,3.97283233]
[1751787184144,7.969,2522.9,2522.7,0.00889961]
[1751787190857,7.969,2522.9,2522.7,3.97290276]
[1751787193059,7.969,2522.9,2522.7,0.00889961]
[1751787193359,0.49786504,2522.8,2522.7,0.00889961]
[1751787193537,7.969,2522.9,2522.7,0.00889961]
[1751787193737,3.26049773,2522.8,2522.7,3.97289684]
[1751787194062,3.26049773,2522.8,2522.7,0.00889961]
[1751787195280,3.26049773,2522.8,2522.7,3.97290642]
[1751787195760,3.26049773,2522.8,2522.7,0.00889961]
[1751787196958,3.26049773,2522.8,2522.7,3.97290642]
[1751787197962,3.26049773,2522.8,2522.7,0.00889961]
[1751787200061,4.57685036,2522.8,2522.7,0.00889961]
[1751787200264,3.26049773,2522.8,2522.7,0.00889961]
[1751787201356,3.26149773,2522.8,2522.7,0.00889961]
[1751787202066,3.26149773,2522.8,2522.7,3.97290642]
[1751787202267,11.22849773,2522.8,2522.7,3.97290642]
[1751787202570,3.26149773,2522.8,2522.7,3.97290642]
[1751787202792,11.22849773,2522.8,2522.7,3.97290642]
[1751787204939,3.26149773,2522.8,2522.7,3.97290642]
[1751787228794,3.26149773,2522.8,2522.7,0.00889961]
[1751787230196,3.26149773,2522.8,2522.7,3.97290642]
[1751787230369,3.26149773,2522.8,2522.7,0.00889961]
[1751787230569,3.26149773,2522.8,2522.7,3.97290642]
[1751787231065,3.26149773,2522.8,2522.7,0.00889961]
[1751787235406,3.26149773,2522.8,2522.7,3.97290642]
[1751787235901,11.22749773,2522.8,2522.7,3.97290642]
[1751787236104,3.26149773,2522.8,2522.7,3.97290642]
[1751787269548,3.26149773,2522.8,2522.7,4.52290642]
[1751787269735,3.26149773,2522.8,2522.7,5.33950642]
[1751787271409,3.26149773,2522.8,2522.7,4.52290642]
[1751787275861,3.26149773,2522.8,2522.7,3.97290642]
[1751787293582,3.26149773,2522.8,2522.7,0.00889961]
[1751787293583,3.6665875,2522.8,2522.7,0.00889961]
[1751787293785,7.82803719,2522.8,2522.7,0.00889961]
[1751787294097,8.58953719,2522.8,2522.7,0.00889961]
[1751787297282,16.55253719,2522.8,2522.7,0.00889961]
[1751787301589,12.5886875,2522.8,2522.7,0.00889961]
[1751787303081,4.6256875,2522.8,2522.7,0.00889961]
[1751787303282,12.5896875,2522.8,2522.7,0.00889961]
[1751787309494,16.55353719,2522.8,2522.7,0.00889961]
[1751787309793,12.5896875,2522.8,2522.7,0.00889961]
[1751787310173,16.55353719,2522.8,2522.7,0.00889961]
[1751787310997,12.5896875,2522.8,2522.7,0.00889961]
[1751787311293,16.55353719,2522.8,2522.7,0.00889961]
[1751787312198,12.5896875,2522.8,2522.7,0.00889961]
[1751787312986,16.55353719,2522.8,2522.7,0.00889961]
[1751787313690,12.5896875,2522.8,2522.7,0.00889961]